bitfinex/quotes_BTCUSD_20260315
["timestamp","ask_amount","ask_price","bid_price","bid_amount"]
[1773588757201,0.03333946,71499.0,71481.0,0.06994865]
[1773588757538,0.03333946,71498.0,71482.0,0.0014]
[1773588758069,0.03333946,71498.0,71483.0,0.0014]
[1773588758492,0.03333946,71498.0,71481.0,0.06994865]
[1773588758692,0.03333946,71498.0,71482.0,0.0014]
[1773588759207,0.03333946,71498.0,71483.0,0.0014]
[1773588759571,0.03333946,71498.0,71484.0,0.0014]
[1773588759958,0.03333946,71498.0,71481.0,0.06994865]
[1773588760163,0.03333946,71498.0,71482.0,0.0014]
[1773588760578,0.03333946,71498.0,71483.0,0.0014]
[1773588760781,0.03333946,71497.0,71481.0,0.06994865]
[1773588761794,0.06993398,71496.0,71481.0,0.06994865]
[1773588762367,0.10327344,71496.0,71481.0,0.06994865]
[1773588762576,0.10327344,71496.0,71481.0,0.07014865]
[1773588763652,0.06993398,71496.0,71481.0,0.07014865]
[1773588763814,0.03333946,71494.0,71481.0,0.07014865]
[1773588764220,0.03333946,71494.0,71482.0,0.0014]
[1773588764619,0.03333946,71494.0,71481.0,0.07014865]
[1773588764832,0.03333946,71494.0,71483.0,0.0014]
[1773588766933,0.03333946,71494.0,71484.0,0.06994572]
[1773588767575,0.06993264,71498.0,71484.0,0.06994572]
[1773588767799,0.1032721,71498.0,71484.0,0.06994572]
[1773588768331,0.00022001,71500.0,71488.0,0.05865831]
[1773588768537,5e-05,71515.0,71490.0,0.05865831]
[1773588768657,5e-05,71515.0,71500.0,0.05865831]
[1773588768855,5e-05,71515.0,71502.0,0.06992811]
[1773588769095,5e-05,71515.0,71503.0,0.01713876]
[1773588769845,5e-05,71515.0,71502.0,0.06992811]
[1773588771706,0.0699154,71515.0,71502.0,0.06992811]
[1773588771906,0.07013541,71515.0,71502.0,0.06992811]
[1773588772791,0.00022001,71515.0,71502.0,0.06992811]
[1773588773784,0.07013565,71515.0,71502.0,0.06992811]
[1773588775587,0.00022001,71515.0,71502.0,0.06992811]
[1773588777475,0.05870831,71540.0,71502.0,0.07092811]
[1773588777476,0.03877367,71526.0,71502.0,0.07092811]
[1773588777744,0.06990562,71525.0,71504.0,0.06992615]
[1773588778047,0.04895339,71524.0,71504.0,0.06992615]
[1773588778549,0.04895339,71524.0,71505.0,0.0014]
[1773588779545,0.04895339,71524.0,71506.0,0.0014]
[1773588779952,0.04895339,71522.0,71507.0,0.0014]
[1773588780993,0.00022001,71515.0,71507.0,0.0014]
[1773588781277,0.04895339,71519.0,71507.0,0.0014]
[1773588781426,0.0477395,71519.0,71507.0,0.0014]
[1773588781626,0.04686935,71519.0,71507.0,0.0014]
[1773588782128,0.04686935,71519.0,71508.0,0.06992224]
[1773588785069,0.04686935,71519.0,71509.0,0.0014]
[1773588785592,0.04686935,71519.0,71510.0,0.0014]
[1773588786569,0.04686935,71519.0,71511.0,0.06991931]
[1773588787622,0.04686935,71519.0,71512.0,0.0014]
[1773588789432,0.04686935,71519.0,71513.0,0.06991735]
[1773588790801,0.04708936,71519.0,71513.0,0.06991735]
[1773588791040,0.04709138,71518.0,71504.0,0.06992615]
[1773588791249,0.04709138,71518.0,71505.0,0.0014]
[1773588791450,0.06991344,71517.0,71506.0,0.0699242]
[1773588791673,0.03608997,71516.0,71506.0,0.0699242]
[1773588792522,0.03608997,71516.0,71507.0,0.0014]
[1773588794243,0.03608997,71516.0,71508.0,0.06992224]
[1773588795111,0.1060044,71516.0,71508.0,0.06992224]
[1773588795709,0.03608997,71516.0,71508.0,0.06992224]
[1773588796938,0.10600444,71516.0,71508.0,0.06992224]
[1773588797447,0.03608997,71515.0,71503.0,0.0002]
[1773588797640,0.03608997,71513.0,71503.0,0.05435094]
[1773588797944,0.03608997,71513.0,71504.0,0.0014]
[1773588798390,0.1060083,71512.0,71504.0,0.0713258]
[1773588798844,0.03608997,71511.0,71504.0,0.0713258]
[1773588799619,0.03608997,71511.0,71508.0,0.0002]
[1773588800121,0.03608997,71510.0,71508.0,0.0002]
[1773588802429,0.03608997,71510.0,71490.0,0.05865831]
[1773588802644,0.03608997,71510.0,71502.0,0.05551734]
[1773588802820,0.06991941,71511.0,71502.0,0.0014]
[1773588804047,0.06991793,71513.0,71503.0,0.06992697]
[1773588805512,0.06991793,71513.0,71504.0,0.0014]
[1773588807097,0.06991793,71513.0,71504.0,0.07132578]
[1773588807348,0.18456,71548.0,71504.0,0.07132578]
[1773588807349,0.00022001,71519.0,71504.0,0.07132578]
[1773588807487,0.0701316,71519.0,71505.0,0.03708559]
[1773588808852,0.0701316,71519.0,71506.0,0.0699242]
[1773588810050,0.00022001,71514.0,71506.0,0.0699242]
[1773588811197,0.0701316,71519.0,71506.0,0.0699242]
[1773588811403,0.06985227,71519.0,71506.0,0.0699242]
[1773588813383,0.069909,71522.0,71506.0,0.10700979]
[1773588813794,0.0699789,71522.0,71506.0,0.10700979]
[1773588814575,0.0701031,71522.0,71506.0,0.10700979]
[1773588815846,0.0701031,71522.0,71507.0,0.03708559]
[1773588817919,0.07032311,71522.0,71508.0,0.06992224]
[1773588820082,0.07032311,71522.0,71507.0,0.03708559]
[1773588824341,0.07032311,71522.0,71508.0,0.06992224]
[1773588831063,0.00041411,71522.0,71508.0,0.06992224]
[1773588832787,0.00041411,71522.0,71509.0,0.03832458]
[1773588833109,0.00041411,71522.0,71511.0,0.03832458]
[1773588833620,0.06990953,71521.0,71512.0,0.06991833]
[1773588834666,0.07003373,71521.0,71512.0,0.06991833]
[1773588834981,0.06934216,71521.0,71512.0,0.06991833]
[1773588842226,0.06934216,71521.0,71500.0,0.0002]
[1773588842380,0.05863203,71510.0,71494.0,0.07013576]
[1773588842587,0.03654094,71509.0,71496.0,0.0014]
[1773588843423,0.06992224,71508.0,71497.0,0.0014]
[1773588843622,0.0001242,71517.0,71500.0,0.03832458]
[1773588843794,0.0700661,71526.0,71508.0,0.03832458]
[1773588843995,0.0700661,71526.0,71510.0,0.03832458]
[1773588845264,0.0700661,71526.0,71511.0,0.0014]
[1773588845482,0.0001614,71526.0,71512.0,0.06991833]
[1773588846897,0.0001614,71526.0,71513.0,0.03832458]
[1773588847606,5e-05,71527.0,71515.0,0.03832458]
[1773588847806,5e-05,71528.0,71515.0,0.03832458]
[1773588848839,0.06989824,71533.0,71515.0,0.03832458]
[1773588849424,0.07010823,71535.0,71521.0,0.03832458]
[1773588849626,0.07010823,71535.0,71522.0,0.07130855]
[1773588850221,0.00022001,71533.0,71522.0,0.07130855]
[1773588852251,0.00022001,71533.0,71521.0,0.10823313]
[1773588852252,0.06055916,71535.0,71523.0,0.0014]
[1773588852484,0.0971001,71535.0,71523.0,0.0014]
[1773588853383,0.03654094,71534.0,71523.0,0.0014]
[1773588853583,0.03654094,71534.0,71514.0,0.06991604]
[1773588853809,0.03654094,71534.0,71515.0,0.0014]
[1773588854392,0.03654094,71532.0,71516.0,0.06991442]
[1773588855538,0.03654094,71532.0,71517.0,0.0014]
[1773588857692,0.1064407,71531.0,71518.0,0.0014]
[1773588858109,0.1064407,71531.0,71514.0,0.06991604]
[1773588858312,0.03654094,71530.0,71513.0,0.0001614]
[1773588858498,0.03654094,71530.0,71514.0,0.0014]
[1773588858925,0.03654094,71530.0,71515.0,0.0014]
[1773588859336,0.03654094,71530.0,71513.0,0.0001614]
[1773588859512,0.03654094,71530.0,71514.0,0.0014]
[1773588859914,0.06990171,71529.0,71513.0,0.0001614]
[1773588860182,0.03654094,71528.0,71514.0,0.0014]
[1773588860567,0.03654094,71528.0,71515.0,0.0014]
[1773588860991,0.03654094,71528.0,71513.0,0.0001614]
[1773588861309,0.03654094,71528.0,71516.0,0.0014]
[1773588861513,0.03654094,71528.0,71513.0,0.0001614]
[1773588861721,0.03654094,71528.0,71517.0,0.0014]
[1773588862960,0.06990367,71527.0,71513.0,0.0001614]
[1773588863161,0.06990367,71527.0,71518.0,0.0014]
[1773588863558,0.10527686,71527.0,71519.0,0.0014]
[1773588863984,0.10527686,71527.0,71513.0,0.0001614]
[1773588864186,0.10527686,71527.0,71514.0,0.0014]
[1773588864563,0.10527686,71527.0,71515.0,0.0014]
[1773588865020,0.06990367,71527.0,71490.0,0.46910624]
[1773588865196,0.06990367,71527.0,71468.0,0.0002]
[1773588865197,0.01285558,71499.0,71468.0,0.0002]
[1773588865412,0.300367,71462.0,71459.0,0.03537503]
[1773588865564,0.445946,71462.0,71461.0,0.03537503]
[1773588866178,0.44558831,71462.0,71460.0,0.0014]
[1773588866394,0.16259892,71462.0,71460.0,0.00175749]
[1773588867002,0.16259892,71462.0,71460.0,0.00184129]
[1773588869756,0.16259892,71462.0,71458.0,0.0014]
[1773588869953,0.16259892,71462.0,71458.0,0.00150708]
[1773588870157,0.23238765,71462.0,71453.0,0.03537503]
[1773588870331,0.0699676,71462.0,71453.0,0.03543505]
[1773588871690,0.06995535,71475.0,71453.0,0.03543505]
[1773588871857,0.162421,71464.0,71460.0,0.05872032]
[1773588872061,0.0699555,71474.0,71463.0,0.06996627]
[1773588872261,0.0699555,71474.0,71464.0,0.03677503]
[1773588873363,0.0699555,71474.0,71464.0,0.03477503]
[1773588874612,0.06995061,71479.0,71464.0,0.03477503]
[1773588874815,0.06995061,71479.0,71464.0,0.10474]
[1773588877194,0.06995061,71479.0,71465.0,0.03537503]
[1773588879153,0.06995061,71482.0,71466.0,0.06996333]
[1773588879480,0.06995061,71482.0,71467.0,0.03537503]
[1773588880907,0.06889725,71482.0,71467.0,0.03537503]
[1773588882627,0.06889725,71482.0,71470.0,0.09409535]
[1773588882826,0.03537319,71490.0,71470.0,0.09409535]
[1773588882827,0.0699446,71486.0,71472.0,0.03537503]
[1773588884708,0.06994278,71488.0,71473.0,0.06995648]
[1773588885229,0.06994278,71488.0,71473.0,0.10533151]
[1773588886536,0.20834674,71488.0,71473.0,0.10533151]
[1773588887193,0.13840396,71487.0,71473.0,0.10533151]
[1773588887415,0.06994278,71488.0,71473.0,0.10533151]
[1773588887740,0.20869148,71488.0,71473.0,0.10533151]
[1773588888359,0.13852869,71487.0,71473.0,0.10533151]
[1773588888518,0.13852869,71486.0,71473.0,0.10533151]
[1773588888720,0.07016279,71488.0,71473.0,0.10533151]
[1773588889033,0.13860375,71487.0,71473.0,0.10533151]
[1773588889224,0.06994474,71485.0,71473.0,0.10533151]
[1773588890364,0.13878827,71484.0,71473.0,0.10533151]
[1773588890667,0.13878827,71483.0,71473.0,0.10533151]
[1773588890823,0.06994474,71485.0,71473.0,0.10533151]
[1773588891023,0.13878807,71484.0,71473.0,0.10533151]
[1773588891388,0.06994767,71482.0,71473.0,0.10533151]
[1773588891601,0.13878807,71481.0,71473.0,0.10533151]
[1773588891764,0.06994767,71482.0,71473.0,0.10533151]
[1773588892102,0.13890563,71481.0,71473.0,0.10533151]
[1773588892264,0.13904936,71480.0,71473.0,0.10533151]
[1773588892601,0.13904936,71479.0,71473.0,0.10533151]
[1773588892753,0.13904936,71478.0,71473.0,0.10533151]
[1773588892950,0.06994474,71485.0,71473.0,0.10533151]
[1773588893195,0.13904958,71484.0,71473.0,0.10533151]
[1773588893397,0.04623221,71482.0,71472.0,0.0014]
[1773588893600,0.13904958,71481.0,71469.0,0.06996033]
[1773588893774,0.13904958,71480.0,71470.0,0.0014]
[1773588893982,0.13904958,71479.0,71470.0,0.0014]
[1773588894179,0.13904958,71478.0,71470.0,0.0014]
[1773588894381,0.13904958,71477.0,71471.0,0.06995844]
[1773588894579,0.13904958,71476.0,71471.0,0.06995844]
[1773588894851,0.13904958,71475.0,71471.0,0.11455939]
[1773588895096,0.13904958,71474.0,71471.0,0.06995844]
[1773588895408,0.13904958,71473.0,71471.0,0.06995844]
[1773588895554,0.13904958,71472.0,71471.0,0.06995844]
[1773588895759,0.06994837,71482.0,71472.0,0.04460095]
[1773588896608,0.06994767,71483.0,71473.0,0.06995648]
[1773588899225,0.06994767,71483.0,71471.0,0.06995844]
[1773588901770,0.06994767,71483.0,71473.0,0.0002]
[1773588903891,0.06994767,71483.0,71472.0,0.06995726]
[1773588905696,0.11060892,71481.0,71471.0,0.06995844]
[1773588906273,0.11060892,71480.0,71471.0,0.06995844]
[1773588906722,0.06994767,71483.0,71471.0,0.04883754]
[1773588907787,0.06994865,71481.0,71471.0,0.04883754]
[1773588908128,0.00022001,71485.0,71472.0,0.04460095]
[1773588908688,0.00022001,71485.0,71472.0,0.04480095]
[1773588909105,0.07016519,71485.0,71472.0,0.04480095]
[1773588909686,0.07003619,71485.0,71472.0,0.04480095]
[1773588909836,9.101e-05,71485.0,71473.0,0.06995648]
[1773588910036,9.101e-05,71485.0,71473.0,0.11455743]
[1773588911044,9.101e-05,71485.0,71473.0,0.06995648]
[1773588918950,9.101e-05,71485.0,71473.0,0.11455743]
[1773588919153,9.101e-05,71485.0,71474.0,0.04460095]
[1773588919651,9.101e-05,71485.0,71473.0,0.06995648]
[1773588920022,0.04623221,71484.0,71473.0,0.06995648]
[1773588922441,0.0699467,71483.0,71473.0,0.06995648]
[1773588927655,0.070152,71483.0,71473.0,0.06995648]
[1773588931039,0.070152,71483.0,71473.0,0.07015648]
[1773588931668,0.070152,71483.0,71473.0,0.0002]
[1773588932276,0.06994057,71490.0,71473.0,0.0002]
[1773588932277,0.00027001,71503.0,71474.0,0.03626662]
[1773588932444,0.00027001,71503.0,71490.0,0.05868336]
[1773588932649,1e-08,71503.0,71491.0,0.0014]
[1773588932890,1e-08,71503.0,71491.0,0.03652527]
[1773588933404,0.05348229,71510.0,71491.0,0.03652527]
[1773588933563,0.05383934,71510.0,71491.0,0.03652527]
[1773588934098,0.1237598,71510.0,71491.0,0.03652527]
[1773588934513,0.1235895,71510.0,71492.0,0.06993789]
[1773588935526,0.05366904,71510.0,71492.0,0.06993789]
[1773588935731,0.05366904,71510.0,71500.0,0.05868336]
[1773588935936,0.05366904,71510.0,71499.0,0.0014]
[1773588936296,0.07027734,71510.0,71499.0,0.0014]
[1773588936474,0.05331199,71509.0,71499.0,0.0014]
[1773588936639,0.05331199,71509.0,71500.0,0.06993006]
[1773588940991,0.05331199,71508.0,71495.0,0.06993437]
[1773588941486,0.05331199,71506.0,71495.0,0.06993437]
[1773588941699,0.05471199,71505.0,71495.0,0.06993437]
[1773588946255,0.0014,71505.0,71495.0,0.12861773]
[1773588946459,0.06992239,71508.0,71495.0,0.12861773]
[1773588946707,0.0014,71507.0,71495.0,0.12861773]
[1773588946884,0.0014,71507.0,71497.0,0.05868336]
[1773588947092,0.0014,71507.0,71495.0,0.06993437]
[1773588947093,0.05331199,71506.0,71495.0,0.06993437]
[1773588951037,0.12323626,71506.0,71495.0,0.06993437]
[1773588951254,0.12345627,71506.0,71495.0,0.06993437]
[1773588954505,0.12345627,71506.0,71495.0,0.04175067]
[1773588958594,0.12345627,71506.0,71494.0,0.0014]
[1773588958823,0.12345627,71506.0,71495.0,0.06993437]
[1773588962162,0.05862495,71505.0,71485.0,0.06994434]
[1773588963367,0.05862495,71503.0,71485.0,0.06994434]
[1773588964429,0.05862495,71503.0,71495.0,0.0002]
[1773588966075,0.06992158,71509.0,71496.0,0.05941096]
[1773588966301,1e-08,71514.0,71502.0,0.05941096]
[1773588966471,0.00022001,71521.0,71495.0,0.07013493]
[1773588966472,0.07012993,71521.0,71505.0,0.05941096]
[1773588966675,0.06991065,71520.0,71508.0,0.05868336]
[1773588967329,0.07012993,71521.0,71509.0,0.05941096]
[1773588968241,0.07012993,71521.0,71510.0,0.06992029]
[1773588971736,0.07012993,71521.0,71510.0,0.12933125]
[1773588971939,0.07012993,71521.0,71510.0,0.06992029]
[1773588972144,0.0002389,71522.0,71511.0,0.05941096]
[1773588972339,0.06995764,71523.0,71511.0,0.05941096]
[1773588972548,0.06995764,71523.0,71512.0,0.07131833]
[1773588976590,5e-05,71523.0,71512.0,0.07131833]
[1773588980128,0.05862495,71522.0,71513.0,0.0014]
[1773588980480,5e-05,71523.0,71513.0,0.0014]
[1773588982230,5e-05,71523.0,71507.0,0.06992029]
[1773588982231,5e-05,71523.0,71507.0,0.06992224]
[1773588982435,5e-05,71523.0,71508.0,0.06262436]
[1773588982656,5e-05,71523.0,71511.0,0.06122436]
[1773588985003,5e-05,71523.0,71513.0,0.06991735]
[1773588985202,5e-05,71523.0,71514.0,0.06262436]
[1773588985406,0.00027001,71523.0,71514.0,0.06262436]
[1773588987164,0.07017785,71523.0,71516.0,0.06122436]
[1773588989116,0.07017785,71523.0,71516.0,0.13113867]
[1773588995214,0.07029935,71523.0,71516.0,0.13113867]
[1773588999135,0.07029935,71523.0,71516.0,0.12168053]
[1773589001222,0.07029935,71523.0,71515.0,0.06991499]
[1773589001735,0.07029935,71523.0,71516.0,0.0014]
[1773589001888,0.07029935,71523.0,71517.0,0.0014]
[1773589002087,0.07029935,71523.0,71518.0,0.0014]
[1773589005146,0.07029935,71523.0,71513.0,0.06991712]
[1773589005465,0.07029935,71523.0,71514.0,0.0014]
[1773589010110,0.07029935,71523.0,71514.0,0.07131633]
[1773589010317,0.07029935,71523.0,71515.0,0.06122436]
[1773589014853,0.07029935,71523.0,71514.0,0.0014]
[1773589014994,0.07029935,71523.0,71515.0,0.0014]
[1773589017959,0.07029935,71523.0,71512.0,0.06991776]
[1773589018126,0.07029935,71523.0,71513.0,0.0014]
[1773589020295,0.07029935,71523.0,71512.0,0.0699182]
[1773589020496,0.07029935,71523.0,71514.0,0.0014]
[1773589020896,0.07029935,71523.0,71512.0,0.0699182]
[1773589021100,0.07029935,71523.0,71515.0,0.0014]
[1773589021309,0.07029935,71523.0,71516.0,0.0014]
[1773589021482,0.06585136,71522.0,71505.0,0.07003162]
[1773589021682,0.06585136,71519.0,71506.0,0.0014]
[1773589022298,0.06585136,71519.0,71507.0,0.0014]
[1773589022475,0.06597286,71519.0,71507.0,0.0014]
[1773589023038,0.06585136,71517.0,71505.0,0.00030704]
[1773589023238,0.06585136,71517.0,71506.0,0.0014]
[1773589023443,0.06585136,71515.0,71507.0,0.0014]
[1773589023644,0.06595842,71515.0,71508.0,0.0014]
[1773589023793,0.06595842,71515.0,71509.0,0.0014]
[1773589023993,0.06595842,71515.0,71510.0,0.0014]
[1773589024705,0.06595842,71515.0,71498.0,0.0002]
[1773589024908,0.06595842,71515.0,71499.0,0.06993104]
[1773589025084,0.06585136,71509.0,71499.0,0.0014]
[1773589025279,0.06992224,71508.0,71500.0,0.0014]
[1773589025486,0.1357736,71508.0,71500.0,0.0014]
[1773589025943,0.1357736,71508.0,71501.0,0.0014]
[1773589028447,0.06585136,71507.0,71487.0,0.06229637]
[1773589028646,0.06585136,71507.0,71488.0,0.0014]
[1773589029042,0.06585136,71507.0,71500.0,0.0002]
[1773589029968,0.0699242,71506.0,71500.0,0.0002]
[1773589030291,0.0699242,71506.0,71501.0,0.0014]
[1773589031020,0.06585136,71505.0,71492.0,0.0016]
[1773589031242,0.06585136,71505.0,71492.0,0.0002]
[1773589031449,0.12446802,71502.0,71493.0,0.0014]
[1773589031612,0.12446802,71502.0,71492.0,0.0002]
[1773589031802,0.12415075,71502.0,71492.0,0.0002]
[1773589032138,0.06992909,71501.0,71493.0,0.0014]
[1773589032346,0.06585136,71500.0,71484.0,6.75e-05]
[1773589032517,0.06585136,71500.0,71491.0,0.0014]
[1773589033359,0.06585136,71500.0,71484.0,6.75e-05]
[1773589033528,0.06585136,71500.0,71485.0,0.0014]
[1773589034739,0.06585136,71498.0,71486.0,0.0014]
[1773589034914,0.06585136,71498.0,71484.0,6.75e-05]
[1773589034915,0.06585136,71495.0,71480.0,0.0016]
[1773589035123,0.05861666,71491.0,71480.0,0.0016]
[1773589036228,0.05872366,71491.0,71480.0,0.0016]
[1773589036763,0.06993985,71490.0,71480.0,0.0002]
[1773589036967,0.06993985,71490.0,71482.0,0.0014]
[1773589038771,0.06993985,71490.0,71476.0,0.0002]
[1773589038999,0.06993985,71490.0,71477.0,0.0014]
[1773589039142,0.13579121,71490.0,71477.0,0.0014]
[1773589042007,0.13579121,71490.0,71476.0,0.0002]
[1773589042190,0.13579121,71490.0,71478.0,0.0014]
[1773589043312,0.13579121,71490.0,71479.0,0.0014]
[1773589043514,0.06260634,71489.0,71476.0,0.0002]
[1773589043675,0.05861666,71486.0,71477.0,0.0014]
[1773589043880,0.121223,71486.0,71477.0,0.0014]
[1773589044308,0.121223,71486.0,71477.0,0.0016]
[1773589045284,0.06994474,71485.0,71477.0,0.0016]
[1773589045824,0.06260634,71484.0,71473.0,0.0002]
[1773589046192,0.06260634,71484.0,71474.0,0.0014]
[1773589046978,0.06260634,71484.0,71473.0,0.0002]
[1773589047229,0.06260634,71484.0,71474.0,0.0014]
[1773589048637,0.06260634,71482.0,71475.0,0.0014]
[1773589049046,0.06260634,71482.0,71473.0,0.0002]
[1773589049241,0.06260634,71482.0,71474.0,0.0014]
[1773589049560,0.06260634,71482.0,71473.0,0.0002]
[1773589049740,0.06260634,71482.0,71474.0,0.0014]
[1773589049954,0.06260634,71482.0,71475.0,0.0014]
[1773589050487,0.06260634,71482.0,71472.0,1e-08]
[1773589050673,0.06260634,71482.0,71465.0,0.00025]
[1773589050674,0.06260634,71480.0,71470.0,0.00145]
[1773589050848,0.12131925,71480.0,71470.0,0.00145]
[1773589051229,0.12131925,71480.0,71470.0,0.0014]
[1773589052050,0.05871291,71480.0,71466.0,0.0002]
[1773589052248,0.06260634,71479.0,71470.0,0.0014]
[1773589052472,0.06260634,71479.0,71471.0,0.0014]
[1773589052669,0.06995159,71478.0,71471.0,0.0014]
[1773589053068,0.06260634,71477.0,71466.0,0.0014]
[1773589053310,0.06260634,71477.0,71465.0,0.0014]
[1773589053451,0.06260634,71475.0,71465.0,0.0014]
[1773589054353,0.06995159,71478.0,71464.0,0.0002]
[1773589054566,0.06995159,71478.0,71463.0,0.0002]
[1773589054567,0.06995159,71478.0,71463.0,0.06528858]
[1773589055754,0.06995159,71478.0,71464.0,0.0014]
[1773589056385,0.06995159,71478.0,71465.0,0.06528858]
[1773589056888,0.06995159,71478.0,71465.0,0.06554748]
[1773589057250,0.06995061,71481.0,71466.0,0.06528858]
[1773589057894,0.06995159,71479.0,71466.0,0.06554748]
[1773589058357,0.06995159,71479.0,71467.0,0.0014]
[1773589058897,0.06995159,71479.0,71468.0,0.0014]
[1773589059274,0.06260634,71478.0,71460.0,5e-05]
[1773589059482,0.05871291,71472.0,71461.0,0.0014]
[1773589059830,0.06260634,71474.0,71460.0,5e-05]
[1773589059976,0.06260634,71474.0,71462.0,0.0014]
[1773589060576,0.06995159,71479.0,71463.0,0.06528858]
[1773589060764,0.06260634,71487.0,71464.0,0.06996529]
[1773589060765,0.06994376,71486.0,71464.0,0.06996529]
[1773589060967,0.05871291,71480.0,71465.0,0.06528858]
[1773589062778,0.06995061,71479.0,71465.0,0.06528858]
[1773589063093,0.06995061,71479.0,71466.0,0.06528858]
[1773589063424,0.06995061,71479.0,71464.0,0.13525387]
[1773589063736,0.06995061,71479.0,71461.0,0.10354539]
[1773589063737,0.06260634,71478.0,71461.0,0.06996744]
[1773589064025,0.06260634,71478.0,71465.0,0.0014]
[1773589065033,0.06995257,71477.0,71465.0,0.0014]
[1773589066737,0.06995257,71477.0,71465.0,0.07136424]
[1773589067101,0.06995257,71477.0,71465.0,0.0014]
[1773589067726,0.06995257,71477.0,71465.0,0.07136406]
[1773589070163,0.06995257,71477.0,71465.0,0.07136407]
[1773589071223,0.06995257,71477.0,71467.0,0.06996236]
[1773589072514,0.07017085,71479.0,71467.0,0.06996236]
[1773589072720,0.06994383,71486.0,71468.0,0.06246074]
[1773589073444,0.06994383,71486.0,71469.0,0.0699604]
[1773589073641,0.13514742,71486.0,71469.0,0.0699604]
[1773589074567,0.13514742,71486.0,71469.0,0.13242114]
[1773589075534,0.00022001,71477.0,71469.0,0.13242114]
[1773589076875,0.06994907,71481.0,71469.0,0.0699604]
[1773589077070,0.06994907,71481.0,71470.0,0.06246074]
[1773589077406,0.06994907,71481.0,71471.0,0.0014]
[1773589077787,0.06994718,71483.0,71472.0,0.06995746]
[1773589078749,0.06994718,71483.0,71473.0,0.06246074]
[1773589079156,0.06994572,71484.0,71473.0,0.06246074]
[1773589079589,0.06578329,71486.0,71473.0,0.06246074]
[1773589079788,0.0701628,71487.0,71474.0,0.0699555]
[1773589080549,0.00038421,71490.0,71475.0,0.06246074]
[1773589085146,0.0703241,71490.0,71476.0,0.06995355]
[1773589085339,0.0703241,71490.0,71477.0,0.0014]
[1773589085967,0.00038421,71490.0,71477.0,0.06386074]
[1773589086241,0.06993691,71493.0,71481.0,0.06246074]
[1773589086430,0.06993691,71493.0,71481.0,0.06281779]
[1773589087351,0.06993691,71493.0,71482.0,0.06994767]
[1773589087505,0.06993691,71493.0,71483.0,0.0014]
[1773589089654,0.06993691,71493.0,71484.0,0.06994572]
[1773589091264,0.07015692,71493.0,71484.0,0.06994572]
[1773589091617,0.00022001,71493.0,71484.0,0.06994572]
[1773589095153,0.07015715,71493.0,71484.0,0.06994572]
[1773589096974,0.07015715,71493.0,71483.0,0.06994572]
[1773589097172,0.06520359,71492.0,71484.0,0.0014]
[1773589101242,0.0654236,71492.0,71485.0,0.06994474]
[1773589105459,0.00022001,71492.0,71486.0,0.0014]
[1773589107369,0.07015809,71492.0,71486.0,0.0014]
[1773589109594,0.00022001,71492.0,71486.0,0.07134374]
[1773589112083,0.07015794,71492.0,71484.0,0.06994558]
[1773589112289,0.06499039,71491.0,71487.0,0.0014]
[1773589112586,0.06499039,71491.0,71488.0,0.0014]
[1773589115793,0.00022001,71492.0,71488.0,0.0014]
[1773589120258,0.06499039,71491.0,71484.0,0.07014558]
[1773589120411,0.06499039,71491.0,71489.0,0.0014]
[1773589121113,0.07015791,71492.0,71489.0,0.0014]
[1773589127601,0.07015791,71492.0,71490.0,0.0014]
[1773589128733,0.07015791,71492.0,71487.0,0.0002]
[1773589128900,0.07015791,71492.0,71488.0,0.0014]
[1773589129415,0.1351483,71492.0,71488.0,0.0014]
[1773589132247,0.07015791,71492.0,71488.0,0.0014]
[1773589132549,0.13145203,71492.0,71488.0,0.0014]
[1773589133678,0.06151413,71492.0,71488.0,0.0014]
[1773589133885,0.06151413,71492.0,71487.0,0.0002]
[1773589134048,0.06151413,71492.0,71488.0,0.0014]
[1773589134741,0.00022001,71492.0,71488.0,0.0014]
[1773589140909,0.07015797,71492.0,71475.0,0.0002]
[1773589141115,0.05831985,71485.0,71472.0,0.07015736]
[1773589141316,0.11997232,71482.0,71473.0,0.0014]
[1773589141489,0.06129412,71482.0,71473.0,0.0014]
[1773589141698,0.06129412,71482.0,71472.0,0.0701571]
[1773589142029,0.06129412,71482.0,71472.0,0.0002]
[1773589142203,0.06129412,71482.0,71473.0,0.0014]
[1773589143582,0.06994865,71481.0,71480.0,0.0002]
[1773589143785,0.13124277,71481.0,71473.0,0.0016]
[1773589144604,0.06994865,71481.0,71473.0,0.0016]
[1773589145593,0.06994865,71483.0,71474.0,0.0014]
[1773589150857,0.06994865,71483.0,71474.0,0.0016]
[1773589151128,0.06129412,71482.0,71474.0,0.0016]
[1773589151627,0.06129412,71482.0,71475.0,0.0014]
[1773589154022,0.06994865,71481.0,71475.0,0.0014]
[1773589154243,0.06129412,71480.0,71470.0,0.0014]
[1773589155869,0.06994865,71481.0,71470.0,0.0014]
[1773589156139,0.06994865,71481.0,71471.0,0.06995844]
[1773589156823,0.06994865,71481.0,71470.0,0.0713588]
[1773589160345,0.06994865,71481.0,71470.0,0.0699588]
[1773589160551,0.06994865,71481.0,71471.0,0.0014]
[1773589160552,0.06995159,71478.0,71471.0,0.0014]
[1773589160733,0.13124571,71478.0,71471.0,0.0014]
[1773589161546,0.13124571,71478.0,71472.0,0.0014]
[1773589165789,0.13124571,71478.0,71472.0,0.0016]
[1773589167155,0.13124571,71478.0,71472.0,0.0002]
[1773589169983,0.05761226,71477.0,71470.0,0.0014]
[1773589172514,0.06995355,71476.0,71470.0,0.0014]
[1773589174829,0.06995355,71476.0,71469.0,0.0016]
[1773589175029,0.0695951,71476.0,71469.0,0.0016]
[1773589175230,0.0695951,71476.0,71469.0,0.0002]
[1773589175442,0.06941588,71476.0,71469.0,0.0016]
[1773589175735,0.06941588,71476.0,71469.0,0.0002]
[1773589175885,0.06941588,71476.0,71469.0,0.0016]
[1773589176237,0.06941588,71476.0,71469.0,0.0002]
[1773589176396,0.06941588,71476.0,71469.0,0.0016]
[1773589177034,0.06923668,71476.0,71469.0,0.0016]
[1773589178874,0.06923668,71476.0,71469.0,0.0002]
[1773589179279,0.05761226,71475.0,71469.0,0.0002]
[1773589179656,0.06923668,71476.0,71469.0,0.0002]
[1773589182118,0.06945669,71476.0,71469.0,0.0002]
[1773589187553,0.05761226,71475.0,71467.0,0.0002]
[1773589190767,0.0699555,71474.0,71467.0,0.0002]
[1773589194110,0.12852358,71474.0,71467.0,0.0002]
[1773589195356,0.12852358,71474.0,71467.0,2.805e-05]
[1773589198489,0.0699555,71474.0,71467.0,2.805e-05]
[1773589200854,0.0699555,71474.0,71466.0,0.0002]
[1773589200855,0.05856808,71473.0,71462.0,0.0002]
[1773589201005,0.05856808,71468.0,71454.0,0.0014]
[1773589201207,0.05856808,71468.0,71435.0,0.07004339]
[1773589201208,0.05856808,71463.0,71449.0,0.0014]
[1773589201435,0.11728276,71459.0,71442.0,0.06998665]
[1773589201637,0.11728276,71459.0,71448.0,0.0014]